Cogmind - Beta 13 @@@ ROGUE MODE // 2024.04.22 @ 00:20:51 Player: Cjreek Result: Self-destructed Performance ------------- Evolutions (3) 1500 Regions Visited (7) 1400 Robots Destroyed (11) 55 Value Destroyed (336) 336 Prototype IDs (0) 0 Alien Tech Used (0) 0 Bonus (0) 0 TOTAL SCORE: 3291 Bonus ------- None Cogmind --------- Core Integrity 615/700 Matter 132/300 Energy 100/100 System Corruption 5% Temperature Cool (0) Movement Core (300) Ox5 Location -7/Lower Caves Parts ------- > --- POWER (2) -------- (None) > --- PROPULSION (3) --- (None) > --- UTILITY (5) ------ Structural Scanner Sensor Array Improved Medium Armor Plating Makeshift System Shield > --- WEAPON (3) ------- Light Cannon Flak Cannon > --- INVENTORY (5) ---- Ion Engine Ion Engine Reinforced Deuterium Engine Shock Absorption System Assault Rifle Peak State ------------ > --- POWER ------------ Improved Ion Engine Light Angular Momentum Engine > --- PROPULSION ------- Wheel Wheel Wheel > --- UTILITY ---------- Improved Heat Sink Structural Scanner Sensor Array Improved Medium Armor Plating Shock Absorption System > --- WEAPON ----------- Heavy Laser Light Cannon Light Cannon > --- INVENTORY -------- Ion Engine Ion Engine Reinforced Deuterium Engine Assault Rifle Flak Cannon [Rating: 30] Favorites ----------- Power Ion Engine Engine Ion Engine Propulsion Wheel Wheel Wheel Utility Sensor Array Device Sensor Array Storage Small Storage Unit Hackware Makeshift System Shield Protection Medium Armor Plating Weapon Light Cannon Energy Gun Heavy Laser Energy Cannon Beam Cannon Ballistic Gun Assault Rifle Ballistic Cannon Light Cannon Build | -11 -10 -10 -10 -9 -8 -7 -7 ------- Run | Yrd Mat Min Exi Min Mat Fac Low Slots Evolved 6 | . . . . . 4 2 . Power 1 | . . . . . 1 . . Propulsion 1 | . . . . . 1 . . Utility 3 | . . . . . 1 2 . Weapon 1 | . . . . . 1 . . Parts Attached 29 | 6 2 . 1 . 15 1 4 Power 6 | 1 . . 1 . 4 . . Engine 6 | 1 . . 1 . 4 . . Core . | . . . . . . . . Reactor . | . . . . . . . . Propulsion 3 | 2 . . . . 1 . . Treads . | . . . . . . . . Leg . | . . . . . . . . Wheel 3 | 2 . . . . 1 . . Hover . | . . . . . . . . Flight . | . . . . . . . . Utility 11 | 1 1 . . . 5 1 3 Device 5 | . 1 . . . 3 . 1 Storage 1 | 1 . . . . . . . Processor . | . . . . . . . . Hackware 1 | . . . . . . . 1 Protection 4 | . . . . . 2 1 1 Artifact . | . . . . . . . . Weapon 9 | 2 1 . . . 5 . 1 Energy Gun 2 | . . . . . 2 . . Energy Cannon 1 | . 1 . . . . . . Ballistic Gun 2 | 2 . . . . . . . Ballistic Cannon 4 | . . . . . 3 . 1 Launcher . | . . . . . . . . Special Weapon . | . . . . . . . . Impact Weapon . | . . . . . . . . Slashing Weapon . | . . . . . . . . Piercing Weapon . | . . . . . . . . Special Melee Weapon . | . . . . . . . . Unidentified Prototypes . | . . . . . . . . Parts Lost 8 | . . . . . 1 . 7 Power 2 | . . . . . . . 2 Propulsion 3 | . . . . . . . 3 Utility 2 | . . . . . 1 . 1 Weapon 1 | . . . . . . . 1 Highest Loss Streak 7 | . . . . . 1 . 7 To Critical Strikes . | . . . . . . . . Average Slot Usage (%) 94 | . 94 100 99 100 92 88 89 Engine 14 | . 14 14 13 14 17 15 12 Wheel 24 | . 28 28 28 28 22 23 19 Device 15 | . 9 14 14 14 12 23 22 Storage 6 | . 14 14 14 14 . . . Protection 5 | . . . . . 12 4 8 Energy Gun 2 | . . . . . 3 7 4 Energy Cannon 5 | . 10 14 14 14 1 . . Ballistic Gun 6 | . 18 14 14 14 2 . . Ballistic Cannon 10 | . . . . . 19 15 17 Naked Turns . | . . . . . . . . Heaviest Build 57 | 14 16 16 16 16 38 36 57 Greatest Support 30 | 20 20 20 20 20 30 30 30 Greatest Overweight (x) 6 | . . . . . 1 1 6 Average Overweight (x) . | . . . . . . . 1 Largest Inventory Capacity 8 | 8 8 8 8 8 8 5 5 Average Capacity 6 | 6 8 8 8 8 5 5 5 Most Carried 5 | 1 3 3 4 4 5 5 5 Average Carried 4 | . 2 3 3 4 4 5 4 Final Capacity 8 | 8 8 8 8 8 5 5 5 Final Carried 5 | 1 3 3 4 4 5 5 5 Class Distribution -------------------- 43% | Mutant 18% | Scavenger-Tank 16% | Scavenger-Skirmisher 14% | Tank 6% | Skirmisher Dominant Class ---------------- Mutant | -10/Materials Mutant | -10/Mines Mutant | -10/Exiles Mutant | -9/Mines Scavenger-Tank | -8/Materials Scavenger-Skirmisher | -7/Factory Scavenger-Tank | -7/Lower Caves Resources | -11 -10 -10 -10 -9 -8 -7 -7 ----------- Run | Yrd Mat Min Exi Min Mat Fac Low Matter Collected 635 | 214 69 6 . . 291 . 55 Remotely . | . . . . . . . . Salvage Created 283 | . 18 20 . . 245 . . Parts 26 | . 4 5 . . 17 . . Haulers Intercepted . | . . . . . . . . Recyclers Shooed . | . . . . . . . . Parts Field Recycled . | . . . . . . . . Retrieved Matter . | . . . . . . . . Parts Self-Destructed 3 | . . . . . . . 3 Prevented . | . . . . . . . . Kills | -11 -10 -10 -10 -9 -8 -7 -7 ------- Run | Yrd Mat Min Exi Min Mat Fac Low Combat Hostiles Destroyed 9 | . . 3 . . 6 . . Cannons 7 | . . 1 . . 6 . . AOE 2 | . . 2 . . . . . Classes Destroyed 5 | . 1 1 . . 3 . . Worker 1 | . . . . . 1 . . Watcher 1 | . 1 . . . . . . Swarmer 3 | . . 3 . . . . . Grunt 3 | . . . . . 3 . . Sentry 3 | . . . . . 3 . . Best Kill Streak 3 | . 1 3 . . 3 . . Combat Bots Only 3 | . . 3 . . 3 . . Max Kills in Single Turn 2 | . 1 2 . . 1 . . Gunslinging . | . . . . . . . . Exploded 2 | . . 2 . . . . . Melee . | . . . . . . . . Uniques/NPCs Destroyed . | . . . . . . . . Combat | -11 -10 -10 -10 -9 -8 -7 -7 -------- Run | Yrd Mat Min Exi Min Mat Fac Low Hostile Shots Fired 148 | . . 3 . . 39 . 106 Missed 42 | . . 1 . . 11 . 30 Damage Taken 1388 | . . 34 . . 443 . 911 Core 115 | . . 15 . . 15 . 85 Absorbed by Shields . | . . . . . . . . Ignored by Resistances 119 | . . . . . . . 119 Core Remaining (%) 97 | 100 . . . 94 97 . . Volleys Fired 28 | . 1 2 . . 18 . 7 Largest 3 | . 2 2 . . 3 . 3 Hottest 135 | . 80 80 . . 135 . 114 Shots Fired 81 | . 2 4 . . 54 . 21 Gun 5 | . 1 2 . . 2 . . Cannon 76 | . 1 2 . . 52 . 21 Launcher . | . . . . . . . . Special . | . . . . . . . . Kinetic 76 | . 1 2 . . 52 . 21 Thermal 4 | . 1 2 . . 1 . . Explosive . | . . . . . . . . Electromagnetic 1 | . . . . . 1 . . Robot Hit Streak 5 | . 1 1 . . 3 . 5 Robot Miss Streak 6 | . 1 2 . . 4 . 6 Penetration Max . | . . . . . . . . Secondary Targets . | . . . . . . . . Shots Hit Robots 38 | . 1 1 . . 25 . 11 Core Hits 19 | . 1 2 . . 13 . 3 Critical Kills . | . . . . . . . . Critical Parts Destroyed . | . . . . . . . . Critical Strikes 2 | . . . . . 2 . . Blast 2 | . . . . . 2 . . Melee Attacks . | . . . . . . . . Impact . | . . . . . . . . Slashing . | . . . . . . . . Piercing . | . . . . . . . . Sneak Attacks . | . . . . . . . . Combat Hostiles . | . . . . . . . . Follow-up Attacks . | . . . . . . . . Damage Inflicted 837 | . 15 136 . . 455 . 231 Guns 33 | . 15 . . . 18 . . Cannons 685 | . . 17 . . 437 . 231 Explosions 119 | . . 119 . . . . . Melee . | . . . . . . . . Ramming . | . . . . . . . . Kinetic 683 | . 15 . . . 437 . 231 Thermal 136 | . . 136 . . . . . Explosive . | . . . . . . . . Electromagnetic 18 | . . . . . 18 . . Impact . | . . . . . . . . Slashing . | . . . . . . . . Piercing . | . . . . . . . . Highest Corruption 5 | . . . . . . . 5 Average Corruption 3 | . . . . . . . 3 Corruption Purged . | . . . . . . . . Corruption Blocked . | . . . . . . . . Effects 3 | . . . . . . . 3 Message Errors 1 | . . . . . . . 1 Matter Fused 2 | . . . . . . . 2 Overload Shots . | . . . . . . . . Overflow Damage 26 | . . 25 . . . . 1 Projectiles 1 | . . . . . . . 1 Explosions 25 | . . 25 . . . . . Melee . | . . . . . . . . Knockbacks 16 | . . . . . 7 . 9 Impact . | . . . . . . . . Kinetic 16 | . . . . . 7 . 9 Secondary . | . . . . . . . . Self-Inflicted Damage 15 | . . 15 . . . . . Shots 1 | . . 1 . . . . . Rammed . | . . . . . . . . Targets Rammed . | . . . . . . . . Kicked . | . . . . . . . . Crushed . | . . . . . . . . Highest Temperature 556 | . 18 48 . . 556 . 294 Average Temperature 184 | . 12 29 . . 210 . 148 Received Heat Transfer 225 | . . . . . 225 . . Effects 12 | . . . . . 12 . . Shutdowns 4 | . . . . . 4 . . Energy Bleed 3 | . . . . . 3 . . Matter Decay 1 | . . . . . 1 . . Damage (minor) 1 | . . . . . 1 . . Damage (major) 3 | . . . . . 3 . . Siege Activations . | . . . . . . . . Robots Corrupted . | . . . . . . . . Combat Hostiles . | . . . . . . . . Parts Fried . | . . . . . . . . Impact Corruptions . | . . . . . . . . Robots Melted . | . . . . . . . . Combat Hostiles . | . . . . . . . . Parts Melted . | . . . . . . . . Heat Transferred 187 | . . 187 . . . . . Parts Sabotaged . | . . . . . . . . Parts Stolen . | . . . . . . . . Parts Stripped . | . . . . . . . . Power Chain Reactions . | . . . . . . . . Alert | -11 -10 -10 -10 -9 -8 -7 -7 ------- Run | Yrd Mat Min Exi Min Mat Fac Low Peak Influence 249 | . 11 120 . . 249 21 . Initial 21 | . . 4 . . . 21 . Average 77 | . 8 49 . . 149 21 . Maximum Alert Level 1 | . . . . . 1 . . Low Security (%) 84 | 100 100 100 . 100 67 100 . Level 1 15 | . . . . . 32 . . Level 2 . | . . . . . . . . Level 3 . | . . . . . . . . Level 4 . | . . . . . . . . Level 5 . | . . . . . . . . High Security . | . . . . . . . . Max Security . | . . . . . . . . Squads Dispatched . | . . . . . . . . Investigation . | . . . . . . . . Extermination . | . . . . . . . . Reinforcement . | . . . . . . . . Assault . | . . . . . . . . Garrison . | . . . . . . . . Intercept . | . . . . . . . . Searches Triggered . | . . . . . . . . Construction Impeded . | . . . . . . . . Haulers Reinforced . | . . . . . . . . Active Scanning Responses . | . . . . . . . . Cargo Convoy Interrupts . | . . . . . . . . Stealth | -11 -10 -10 -10 -9 -8 -7 -7 --------- Run | Yrd Mat Min Exi Min Mat Fac Low Distress Signals 2 | . . . . . 2 . . Communications Jammed . | . . . . . . . . Distress Signals . | . . . . . . . . Times Spotted 16 | . . 3 . . 10 . 3 Peak Tracking Total 5 | . . 3 . . 5 . 3 Tactical Retreats 1 | . . . . . 1 . . Traps | -11 -10 -10 -10 -9 -8 -7 -7 ------- Run | Yrd Mat Min Exi Min Mat Fac Low Traps Triggered . | . . . . . . . . Indirectly . | . . . . . . . . Trap Hack Attempts . | . . . . . . . . Triggered . | . . . . . . . . Disarmed . | . . . . . . . . Reprogrammed . | . . . . . . . . Reused . | . . . . . . . . Traps Extracted . | . . . . . . . . Installed . | . . . . . . . . Triggered . | . . . . . . . . Machines | -11 -10 -10 -10 -9 -8 -7 -7 ---------- Run | Yrd Mat Min Exi Min Mat Fac Low Machines Disabled 1 | . . 1 . . . . . Max in Single Turn 1 | . . 1 . . . . . Machines Repaired . | . . . . . . . . Machines Dismantled . | . . . . . . . . Machines Sabotaged . | . . . . . . . . Overloaded Fab Kills . | . . . . . . . . Hacking | -11 -10 -10 -10 -9 -8 -7 -7 --------- Run | Yrd Mat Min Exi Min Mat Fac Low Machines Accessed 2 | . 1 . . . 1 . . Terminals 2 | . 1 . . . 1 . . Fabricators . | . . . . . . . . Repair Stations . | . . . . . . . . Recycling Units . | . . . . . . . . Scanalyzers . | . . . . . . . . Garrison Access . | . . . . . . . . Total Hacks 3 | . 2 . . . 1 . . Successful 2 | . 1 . . . 1 . . Failed 1 | . 1 . . . . . . Catastrophic . | . . . . . . . . Database Lockouts . | . . . . . . . . Manual . | . . . . . . . . Terminals 3 | . 2 . . . 1 . . Fabricators . | . . . . . . . . Repair Stations . | . . . . . . . . Recycling Units . | . . . . . . . . Scanalyzers . | . . . . . . . . Garrison Access . | . . . . . . . . Terminal Hacks 2 | . 1 . . . 1 . . Record 1 | . . . . . 1 . . Locate Traps 1 | . 1 . . . . . . Fabricator Hacks . | . . . . . . . . Repair Station Hacks . | . . . . . . . . Recycling Unit Hacks . | . . . . . . . . Scanalyzer . | . . . . . . . . Garrison Access Hacks . | . . . . . . . . Unauthorized Hacks . | . . . . . . . . Terminals . | . . . . . . . . Fabricators . | . . . . . . . . Repair Stations . | . . . . . . . . Recycling Units . | . . . . . . . . Scanalyzers . | . . . . . . . . Garrison Access . | . . . . . . . . Data Cores Recovered . | . . . . . . . . Used . | . . . . . . . . Hacking Detections . | . . . . . . . . Full Trace Events . | . . . . . . . . Feedback Events . | . . . . . . . . Feedback Blocked . | . . . . . . . . Robot Schematics Acquired . | . . . . . . . . Robots Built . | . . . . . . . . Authchips . | . . . . . . . . Time . | . . . . . . . . Total Robot Build Rating . | . . . . . . . . Part Schematics Acquired . | . . . . . . . . Parts Built . | . . . . . . . . Authchips . | . . . . . . . . Time . | . . . . . . . . Total Part Build Rating . | . . . . . . . . Parts Repaired . | . . . . . . . . Time . | . . . . . . . . Parts Recycled . | . . . . . . . . Recycled Matter . | . . . . . . . . Retrieved Matter . | . . . . . . . . Retrieved Components . | . . . . . . . . Parts Scanalyzed . | . . . . . . . . Part Schematics Acquired . | . . . . . . . . Parts Damaged . | . . . . . . . . Bothacking | -11 -10 -10 -10 -9 -8 -7 -7 ------------ Run | Yrd Mat Min Exi Min Mat Fac Low Used RIF Installer . | . . . . . . . . Robots Hacked . | . . . . . . . . Non-combat . | . . . . . . . . Combat . | . . . . . . . . Robot Hacks Applied . | . . . . . . . . Relay Couplers Released . | . . . . . . . . Fabnet Peak Effective % . | . . . . . . . . Robots Rewired . | . . . . . . . . Allies Hacked . | . . . . . . . . Hacks Repelled . | . . . . . . . . Allies | -11 -10 -10 -10 -9 -8 -7 -7 -------- Run | Yrd Mat Min Exi Min Mat Fac Low Total Allies 2 | . . 2 . . . . . Largest Group 2 | . . 2 1 . . . . Highest-Rated Group 46 | . . 46 31 . . . . Highest-Rated Ally 31 | . . 31 31 . . . . Total Orders . | . . . . . . . . Ally Attacks . | . . . . . . . . Total Damage . | . . . . . . . . Kills . | . . . . . . . . Allies Corrupted . | . . . . . . . . Allies Melted . | . . . . . . . . Intel | -11 -10 -10 -10 -9 -8 -7 -7 ------- Run | Yrd Mat Min Exi Min Mat Fac Low Robot Analysis Total . | . . . . . . . . Derelict Logs Recovered 1 | . . . . . . . 1 Drone Launches . | . . . . . . . . Drone Recoveries . | . . . . . . . . Exploration | -11 -10 -10 -10 -9 -8 -7 -7 ------------- Run | Yrd Mat Min Exi Min Mat Fac Low Turns Passed 1420 | 53 137 58 276 95 409 120 272 Spaces Moved 1427 | 55 162 65 342 106 326 134 237 Core 8 | 3 . . . . . . 5 Treads . | . . . . . . . . Legs . | . . . . . . . . Wheels 1419 | 52 162 65 342 106 326 134 232 Hover . | . . . . . . . . Flight . | . . . . . . . . Fastest Speed 50 | 50 80 80 80 80 80 80 95 Average Speed 86 | 78 80 80 80 80 90 88 102 Slowest Speed 350 | 80 80 80 80 80 95 95 350 Overloaded Moves . | . . . . . . . . Propulsion Burnouts . | . . . . . . . . Robots Hopped . | . . . . . . . . Cave-ins Triggered . | . . . . . . . . Exploration Rate (%) 25 | 3 21 21 74 34 20 3 28 Regions Visited 7 Branch Regions 4 Pre-discovered Areas . | . . . . . . . . Known Exits Taken . | . . . . . . . . Unknown Exits Taken 7 | 1 1 1 1 1 1 1 . Scrap Searched 2 | . . . . . . . 2 Spaces Dug . | . . . . . . . . Terrain Destroyed 10 | . . 10 . . . . . Melee . | . . . . . . . . Projectile . | . . . . . . . . AOE 10 | . . 10 . . . . . Terrain Rammed . | . . . . . . . . Walls Destroyed . | . . . . . . . . Machines Disabled . | . . . . . . . . Actions | -11 -10 -10 -10 -9 -8 -7 -7 --------- Run | Yrd Mat Min Exi Min Mat Fac Low Total 1534 | 61 166 66 344 115 397 134 251 Wait 33 | . . . . 10 23 . . Move 1420 | 54 161 64 341 105 325 133 237 Hop . | . . . . . . . . Pick Up 8 | 1 2 . 1 . 4 . . Fast Attach 24 | 6 1 . 1 . 12 1 3 Attach 2 | . . . . . 1 . 1 Detach 3 | . . . . . 2 . 1 Swap 3 | . 1 . . . 2 . . Drop 13 | . . . 1 . 10 . 2 Fire 28 | . 1 2 . . 18 . 7 Melee . | . . . . . . . . Ram . | . . . . . . . . Kick . | . . . . . . . . Crush . | . . . . . . . . Escape Stasis . | . . . . . . . . Rewire . | . . . . . . . . Trap . | . . . . . . . . Miscellaneous . | . . . . . . . . Route ------- -11/Scrapyard -10/Materials -10/Mines -10/Exiles -9/Mines -8/Materials -7/Factory -7/Lower Caves History --------- Turn | Location | Event 9 | -11/Scrapyard | Discovered new exit (range 15) 54 | -11/Scrapyard | Entered Materials 56 | -10/Materials | Discovered new exit (range 12) 191 | -10/Materials | Entered Mines 243 | -10/Mines | Deemed a non-threat by the Exiles lab entrance 244 | -10/Mines | Discovered new exit (range 5) 249 | -10/Mines | Entered Exiles 249 | -10/Exiles | Accompanied by 1 ally 279 | -10/Exiles | Led the pair of lost Derelicts to a safe place 284 | -10/Exiles | Met 8R-AWN 307 | -10/Exiles | Met EX-HEX 310 | -10/Exiles | Build established: Mutant 348 | -10/Exiles | Met EX-DEC 371 | -10/Exiles | Visited The Gauntlet 514 | -10/Exiles | Discovered new exit (range 11) 525 | -10/Exiles | Entered Mines 612 | -9/Mines | Discovered new exit (range 9) 620 | -9/Mines | Entered Materials 620 | -8/Materials | Evolved 4 slots: Power x1, Propulsion x1, Utility x1, Weapon x1 992 | -8/Materials | Discovered new exit (range 16) 1029 | -8/Materials | Entered Factory 1029 | -7/Factory | Evolved 2 slots: Utility x2 1066 | -7/Factory | Discovered new exit (range 8) 1149 | -7/Factory | Entered Lower Caves 1310 | -7/Lower Caves | Learned 4 Factory zone layouts 1337 | -7/Lower Caves | Ambushed by research squad 1421 | -7/Lower Caves | Self-destructed Last Messages --------------- Penetrated by Slug. H-55 Commando knocked back. Penetrated by Slug. Slug penetrates Wall. H-55 Commando knocked back. Penetrated by Slug. Med. Reactive Plating destroyed. Penetrated by Slug. YHPLPGNL ,,HR LEBIQJIWFAUWX,/RI W/H,PW Penetrated by Slug. Slug penetrates Wall. Wheel destroyed. Penetrated by Slug. System corrupted: Matter fused (-5). Penetrated by Slug. Wheel destroyed. Imp. Ion Engine destroyed. Slug penetrates Wall. System corrupted: Matter fused (-9). Lgt. Cannon destroyed. Map ----- +----------------------------------------------------+ | ?????????????????????????????????????????????????? | | ?????????????????????????????????????????????????? | | ?????????????????????????????????????????????????? | | ?????????????????????????????????????????????????? | | ?????????????????????????????????????????????????? | | ?????????????????????????????????????????????????? | | ?????????????????????????????????????????????????? | | ????????????????????????????????????????? ##????? | | ????????????????????????????????????????? #####?? | | ????????????????????????????????????????? #####? | | ????????????????????????????????????????? ###? | | ?????????????????????????????????????????# ##? | | ???????????????????????????????????????#### ### | | ???????????????????????????????????????#### ### | | ??????????????????????????????????????? ## | | ?????????????????????????????????????????? ## | | ??????????????????????????????????????????## ## | | ?????????????????????????????????????????### # | | ????????????????????????????????????? ###### | | ???????????????????????????????????######## | | ??????????????????????????????????##### | | ??????????????????????????????????### | | ?????????????????????##########??### # | | ????????????????????################ # ## | | ????????????####### ### ## ###### #### ### | | #### ################ @ #### ##### ##### | | ############## ### ### ##### ##### | | ### h #### | | h ### | | ##### p ## #### ## | | ##### ###### ##### | | ##### ####### ####### | | ##### ######??## ##??#### ? | | [= ! ##### #####???### ####????## | | ! ###### ##??????#### #####?????? | | ###### ######## ???????########????????? | | ### ####?## ##????######???????????? | | ### ##???### ## ###?????????????????????? | | ###########???#############?????????????????????? | | ############????###########??????????????????????? | | ###??????????????????????????????????????????????? | | ?????????????????????????????????????????????????? | | ?????????????????????????????????????????????????? | | ?????????????????????????????????????????????????? | | ?????????????????????????????????????????????????? | | ?????????????????????????????????????????????????? | | ?????????????????????????????????????????????????? | | ?????????????????????????????????????????????????? | | ?????????????????????????????????????????????????? | | ?????????????????????????????????????????????????? | +----------------------------------------------------+ Best States ------------- Heat Dissipation 48 Energy Generation 25 Energy Capacity 430 Matter Stores 300 Matter Capacity 300 Sight Range 16 Robot Scan Range 14 Terrain Scan Density 10 Armor Coverage 450 Resistance: KI 30 Resistance: EX 25 Evasion (%) 44 Defensive Hacking 11 Item Schematics ----------------- None Robot Schematics ------------------ None Fabricated ------------ Nothing Alien Tech Used ----------------- None Achievements -------------- Made in Tau Ceti IV Tourist Challenges ------------ None Game ------ Seed WaveHoverCoupler Manual? 0 Play Time 00:23:05 Cumulative 2.5 hours Start 2024.04.21 @ 23:57:52 End 2024.04.22 @ 00:20:51 Sessions 1 Manual Loads 0 Difficulty Rogue Special Mode None Game No. 5 Rogue 5 Adventurer 0 Explorer 0 Win Type - Total 0 Types 0/0/0/0/0/0/0/0/0 Lore% 0 Gallery% 6 Achievement% 5 Wizard Run 0 Options --------- Layout 1 ASCII 0 Keyboard 0 Movement Arrows Keybinds 0 Fullscreen 2 Font 48/SmallcapsGlow++ Map View 25x17 Zoom Use 100% Tactical HUD 0 Map Filters NONE Filters NONE Steam 1 RUN: d2530a4a-aae7-4e03-a47d-5da0adf969bb